bitfinex/quotes_SOLUSD_20250207
["timestamp","ask_amount","ask_price","bid_price","bid_amount"]
[1738965549813,24.04404584,189.59,189.53,0.063]
[1738965550127,24.04404584,189.6,189.53,24.10704584]
[1738965550919,33.91824584,189.61,189.54,24.04404584]
[1738965551433,81.3,189.62,189.53,0.063]
[1738965551641,81.3,189.62,189.59,24.04404584]
[1738965551823,33.91664584,189.66,189.59,24.04404584]
[1738965552019,24.04404584,189.65,189.58,24.04404584]
[1738965552226,24.04404584,189.63,189.56,24.04404584]
[1738965553437,29.31744584,189.63,189.56,29.31934584]
[1738965553739,24.04404584,189.63,189.56,29.31934584]
[1738965553931,5.2731,189.64,189.57,24.04404584]
[1738965553932,29.31714584,189.64,189.57,24.04404584]
[1738965554238,105.34404584,189.67,189.6,24.04404584]
[1738965554536,81.3,189.67,189.63,24.04404584]
[1738965554840,81.3,189.67,189.65,24.04404584]
[1738965555033,81.3,189.67,189.66,24.04404584]
[1738965555231,85.9,189.72,189.66,24.04404584]
[1738965555539,85.9,189.72,189.66,29.31644584]
[1738965555731,24.04404584,189.71,189.64,24.04404584]
[1738965555935,24.04404584,189.68,189.61,1.5746]
[1738965556109,24.04404584,189.68,189.61,6.8485]
[1738965556315,24.04404584,189.68,189.61,30.89254584]
[1738965556623,24.04404584,189.69,189.62,24.04404584]
[1738965556829,105.34404584,189.71,189.64,24.04404584]
[1738965557344,105.34404584,189.71,189.65,5.2728]
[1738965557721,24.04404584,189.7,189.65,5.2728]
[1738965559237,24.04404584,189.69,189.64,5.2731]
[1738965559627,24.04404584,189.7,189.64,5.2731]
[1738965560127,81.3,189.71,189.64,29.31714584]
[1738965560640,105.34404584,189.71,189.64,29.31714584]
[1738965560848,24.04404584,189.68,189.62,5.2737]
[1738965561022,81.3,189.67,189.61,6.8485]
[1738965561230,105.34404584,189.66,189.61,1.5746]
[1738965561541,24.04404584,189.63,189.58,5.2745]
[1738965561743,24.04404584,189.64,189.58,5.2745]
[1738965562416,105.34404584,189.65,189.58,5.2745]
[1738965562621,81.3,189.65,189.62,24.04404584]
[1738965562921,81.3,189.69,189.62,24.04404584]
[1738965563530,24.04404584,189.68,189.61,24.04404584]
[1738965563851,24.04404584,189.68,189.62,5.2737]
[1738965564221,7.33533993,189.69,189.58,5.2748]
[1738965564222,24.04404584,189.63,189.58,5.2748]
[1738965564624,24.04404584,189.62,189.57,6.9004]
[1738965564941,24.04404584,189.63,189.57,6.9004]
[1738965566550,24.04404584,189.64,189.57,30.94444584]
[1738965566849,24.04404584,189.63,189.57,6.9004]
[1738965567659,105.34404584,189.66,189.58,24.04404584]
[1738965567950,24.04404584,189.61,189.57,6.9003]
[1738965568249,105.34404584,189.66,189.58,24.04404584]
[1738965568546,105.34404584,189.66,189.59,24.04404584]
[1738965568750,105.34404584,189.66,189.57,6.9003]
[1738965568751,24.04404584,189.62,189.57,6.9003]
[1738965568929,24.04404584,189.62,189.57,1.6254]
[1738965569124,24.04404584,189.61,189.57,1.6254]
[1738965569748,24.04404584,189.58,189.53,5.3391]
[1738965569926,24.04404584,189.57,189.53,0.063]
[1738965571348,105.34404584,189.59,189.53,0.063]
[1738965571649,105.34404584,189.59,189.53,5.3391]
[1738965571949,4.6,189.6,189.53,29.38314584]
[1738965572152,24.04404584,189.62,189.55,24.04404584]
[1738965572654,9.8734,189.63,189.57,24.04404584]
[1738965572829,9.8734,189.63,189.56,24.04404584]
[1738965572830,33.91744584,189.63,189.56,24.04404584]
[1738965573149,4.6,189.63,189.57,24.04404584]
[1738965573325,4.6,189.63,189.53,18.5296]
[1738965573326,4.6,189.63,189.58,24.04404584]
[1738965574260,4.6,189.63,189.57,29.31884584]
[1738965574469,28.64404584,189.63,189.57,29.31884584]
[1738965574634,28.64404584,189.63,189.57,5.2748]
[1738965577260,33.91744584,189.63,189.56,24.04404584]
[1738965577439,24.04404584,189.6,189.55,5.2754]
[1738965577949,24.04404584,189.61,189.55,5.2754]
[1738965578548,24.04404584,189.6,189.55,5.2754]
[1738965580256,24.04404584,189.58,189.53,0.063]
[1738965580465,24.04404584,189.56,189.53,0.063]
[1738965580633,24.04404584,189.55,189.53,0.063]
[1738965581265,105.34404584,189.54,189.53,0.063]
[1738965581944,29.57092584,189.54,189.53,0.063]
[1738965582147,53.61497168,189.54,189.53,0.063]
[1738965584971,67.02682021,189.54,189.53,0.063]
[1738965585958,42.85728437,189.54,189.53,0.063]
[1738965586157,18.81323853,189.54,189.44,23.23304584]
[1738965586370,24.04404584,189.5,189.44,23.23304584]
[1738965586558,24.04404584,189.48,189.41,29.32334584]
[1738965586874,24.04404584,189.48,189.42,30.94574584]
[1738965587245,24.04404584,189.49,189.42,30.94574584]
[1738965587673,81.3,189.5,189.45,24.04404584]
[1738965587862,81.3,189.5,189.49,24.04404584]
[1738965588176,105.34404584,189.55,189.49,24.04404584]
[1738965588355,81.3,189.54,189.49,24.04404584]
[1738965588745,80.8,189.54,189.49,24.04404584]
[1738965588945,80.8,189.54,189.5,24.04404584]
[1738965589154,104.84404584,189.58,189.51,24.04404584]
[1738965589365,24.04404584,189.62,189.55,24.04404584]
[1738965589740,28.64404584,189.63,189.56,24.04404584]
[1738965589959,24.04404584,189.6,189.54,24.04404584]
[1738965590450,24.04404584,189.6,189.53,24.04404584]
[1738965591139,24.04404584,189.6,189.53,29.32014584]
[1738965592072,24.04404584,189.62,189.55,24.04404584]
[1738965592262,4.6,189.63,189.57,24.04404584]
[1738965592449,24.04404584,189.6,189.53,29.32014584]
[1738965592960,24.04404584,189.59,189.53,5.2761]
[1738965593271,24.04404584,189.6,189.53,29.32014584]
[1738965593469,24.04404584,189.6,189.54,24.04404584]
[1738965594275,24.04404584,189.6,189.53,29.32014584]
[1738965594865,24.04404584,189.59,189.53,5.2761]
[1738965595080,24.04404584,189.6,189.53,24.04404584]
[1738965596054,24.07404584,189.6,189.53,24.04404584]
[1738965596267,24.07404584,189.6,189.53,29.31994584]
[1738965596578,29.34824584,189.6,189.53,29.31994584]
[1738965598075,24.04404584,189.58,189.51,30.96954584]
[1738965598451,24.04404584,189.55,189.51,1.649]
[1738965598980,80.8,189.57,189.51,30.96964584]
[1738965599185,29.34824584,189.6,189.53,24.04404584]
[1738965599383,0.03,189.6,189.54,24.04404584]
[1738965599550,29.34834584,189.6,189.53,24.04404584]
[1738965599881,0.03,189.6,189.55,24.04404584]
[1738965600083,0.03,189.6,189.56,24.04404584]
[1738965600255,0.03,189.6,189.55,24.04404584]
[1738965600885,0.03,189.6,189.54,24.04404584]
[1738965601048,24.04404584,189.59,189.52,24.04404584]
[1738965601245,5.3044,189.6,189.47,29.32164584]
[1738965601246,24.04404584,189.54,189.47,29.32164584]
[1738965601674,24.04404584,189.56,189.49,24.04404584]
[1738965601866,80.8,189.57,189.47,18.4723]
[1738965602069,80.8,189.57,189.5,24.04404584]
[1738965602070,104.84404584,189.57,189.5,24.04404584]
[1738965602295,104.84404584,189.57,189.46,1.5264]
[1738965602296,24.04404584,189.51,189.46,1.5264]
[1738965602579,80.8,189.56,189.44,0.063]
[1738965602580,24.04404584,189.49,189.44,0.063]
[1738965602782,24.04404584,189.48,189.44,0.063]
[1738965602952,24.04404584,189.47,189.44,0.063]
[1738965603361,24.04404584,189.48,189.44,0.063]
[1738965603558,24.04404584,189.5,189.44,0.063]
[1738965603976,4.6,189.51,189.47,24.04404584]
[1738965604289,4.6,189.51,189.49,24.04404584]
[1738965604496,4.6,189.51,189.44,0.063]
[1738965604667,9.8768,189.51,189.44,0.063]
[1738965604862,33.92084584,189.51,189.44,24.10704584]
[1738965605369,24.04404584,189.5,189.44,0.063]
[1738965605570,9.8768,189.51,189.45,24.04404584]
[1738965605973,33.92084584,189.51,189.44,44.10704584]
[1738965606476,24.04404584,189.5,189.44,20.063]
[1738965606857,24.04404584,189.5,189.44,0.063]
[1738965607061,24.04404584,189.49,189.44,0.063]
[1738965607283,24.04404584,189.48,189.44,0.063]
[1738965607464,9.8768,189.51,189.44,0.063]
[1738965607465,24.04404584,189.47,189.44,0.063]
[1738965607790,24.04404584,189.48,189.47,0.063]
[1738965607988,24.04404584,189.49,189.47,0.063]
[1738965608192,110.12164584,189.48,189.47,0.063]
[1738965609780,42.85898437,189.48,189.47,0.063]
[1738965610163,29.32164584,189.48,189.47,0.063]
[1738965613488,4.6,189.51,189.47,0.063]
[1738965613811,29.32074584,189.51,189.47,0.063]
[1738965613980,24.04404584,189.5,189.47,0.063]
[1738965614705,24.04404584,189.48,189.47,0.063]
[1738965616292,29.32164584,189.48,189.47,0.063]
[1738965616712,20.33592661,189.48,189.47,0.063]
[1738965617085,20.58690661,189.48,189.47,0.063]
[1738965617809,20.33592661,189.48,189.47,0.063]
[1738965619323,20.33562661,189.49,189.47,0.063]
[1738965619499,5.277,189.5,189.49,1.0]
[1738965619702,4.6,189.52,189.49,2.0]
[1738965619898,15.05832661,189.54,189.5,2.0]
[1738965620119,5.2756,189.55,189.52,2.0]
[1738965620324,5.2753,189.57,189.54,2.0]
[1738965620833,0.03,189.56,189.54,2.0]
[1738965621201,0.03,189.56,189.54,1.0]
[1738965621631,0.03,189.56,189.54,2.0]
[1738965621832,0.03,189.56,189.53,2.0]
[1738965622127,24.06278471,189.54,189.5,1.0]
[1738965622329,24.06278471,189.53,189.5,1.0]
[1738965622898,24.06278471,189.53,189.5,2.0]
[1738965623210,24.06278471,189.53,189.5,1.0]
[1738965623707,24.06278471,189.52,189.49,1.0]
[1738965623908,24.06278471,189.51,189.47,2.57]
[1738965624112,24.06278471,189.51,189.47,3.57]
[1738965624329,24.06278471,189.51,189.48,1.0]
[1738965624512,24.06278471,189.51,189.47,3.57]
[1738965624718,24.06278471,189.5,189.47,3.57]
[1738965625108,29.33988471,189.5,189.48,1.0]
[1738965625428,24.06278471,189.49,189.47,0.063]
[1738965625736,24.06278471,189.48,189.47,0.063]
[1738965627199,29.34038471,189.48,189.47,0.063]
[1738965627625,34.06587471,189.48,189.47,0.063]
[1738965627836,47.60321324,189.48,189.47,0.0001]
[1738965631005,0.25098,189.44,189.37,1.0]
[1738965631238,24.06278471,189.4,189.36,1.0]
[1738965631419,24.06278471,189.41,189.36,1.0]
[1738965631739,24.06278471,189.41,189.36,2.0]
[1738965631901,24.06278471,189.41,189.36,1.0]
[1738965632235,24.06278471,189.37,189.31,2.0]
[1738965632533,24.06278471,189.37,189.3,26.06278471]
[1738965632744,24.06278471,189.36,189.31,1.0]
[1738965632923,24.06278471,189.35,189.28,26.06278471]
[1738965633117,29.34428471,189.34,189.29,2.0]
[1738965633320,24.06278471,189.3,189.25,1.0]
[1738965633639,24.06278471,189.29,189.25,1.0]
[1738965633806,24.06278471,189.31,189.25,25.06278471]
[1738965634011,24.18827471,189.33,189.27,1.0]
[1738965634218,0.12549,189.31,189.25,25.06278471]
[1738965634418,44.18827471,189.31,189.28,0.063]
[1738965634820,24.18827471,189.29,189.28,0.063]
[1738965635015,24.31376471,189.29,189.28,0.063]
[1738965635314,0.25098,189.25,189.18,2.0]
[1738965635517,24.06278471,189.22,189.2,1.0]
[1738965635717,24.06278471,189.21,189.17,1.0]
[1738965636055,24.06278471,189.2,189.17,1.0]
[1738965636225,4.6,189.23,189.16,1.0]
[1738965636226,81.3,189.22,189.16,1.0]
[1738965636409,81.3,189.22,189.14,8.02205053]
[1738965636611,4.6,189.23,189.13,2.0]
[1738965636612,20.0,189.18,189.13,2.0]
[1738965636835,20.0,189.18,189.13,1.0]
[1738965637133,81.3,189.21,189.06,1.0]
[1738965637134,20.0,189.13,189.06,1.0]
[1738965637344,20.0,189.13,189.0,13.3144]
[1738965637345,24.06278471,189.09,189.05,1.0]
[1738965637718,24.06278471,189.09,189.03,1.0]
[1738965638233,24.06278471,189.09,189.01,1.0]
[1738965638234,0.25098,189.08,189.01,1.0]
[1738965638429,24.06278471,189.04,189.01,1.0]
[1738965639017,24.06278471,189.03,189.01,1.0]
[1738965639218,24.06278471,189.06,189.03,1.0]
[1738965639430,24.06278471,189.06,189.02,1.0]
[1738965639633,24.06278471,189.03,189.01,1.0]
[1738965640126,0.25098,189.02,188.99,8.02205053]
[1738965640330,24.18827471,189.01,189.0,1.0]
[1738965640716,33.41184853,189.05,189.0,1.0]
[1738965640717,24.06278471,189.05,189.01,1.0]
[1738965640917,18.5087,189.1,189.03,1.0]
[1738965640918,24.06278471,189.09,189.03,1.0]
[1738965641250,4.6,189.1,189.01,1.0]
[1738965641450,24.18827471,189.06,189.01,1.0]
[1738965641623,24.06278471,189.05,189.01,1.0]
[1738965642045,24.06278471,189.04,189.01,1.0]
[1738965642223,24.06278471,189.05,189.01,1.0]
[1738965642636,8.0180168,189.07,189.02,1.0]
[1738965643048,8.0180168,189.07,189.05,1.0]
[1738965643651,5.2887,189.08,189.05,1.0]
[1738965643831,24.06278471,189.14,189.07,25.06278471]
[1738965644030,28.66278471,189.15,189.09,25.06278471]
[1738965644234,5.2862,189.17,189.11,25.06278471]
[1738965644543,29.34898471,189.17,189.11,25.06278471]
[1738965644746,24.18827471,189.15,189.09,24.06278471]
[1738965644926,5.2862,189.17,189.07,1.0]
[1738965644927,24.06278471,189.13,189.07,1.0]
[1738965645121,24.06278471,189.13,189.06,25.06278471]
[1738965645122,24.06278471,189.13,189.06,24.06278471]
[1738965645330,5.2876,189.12,189.09,1.0]
[1738965646158,29.35038471,189.12,189.09,0.063]
[1738965646859,24.06278471,189.1,189.05,1.0]
[1738965647062,24.06278471,189.11,189.05,1.0]
[1738965647356,24.06278471,189.12,189.05,26.06278471]
[1738965647538,24.06278471,189.12,189.07,1.0]
[1738965647735,29.35008471,189.13,189.07,1.0]
[1738965647947,20.0,189.06,189.03,1.0]
[1738965649670,20.25098,189.03,188.95,9.0235]
[1738965649842,20.25098,189.03,188.95,33.08628471]
[1738965649843,24.18827471,189.02,188.95,33.08628471]
[1738965650535,24.06278471,189.01,188.95,9.0235]
[1738965650965,48.66278471,189.03,188.96,26.06278471]
[1738965651148,4.6,189.03,189.0,24.06278471]
[1738965651637,29.8903,189.03,188.99,25.06278471]
[1738965651964,29.8903,189.03,188.99,26.06278471]
[1738965652148,33.95308471,189.03,188.96,25.06278471]
[1738965652650,24.06278471,189.02,188.95,33.08628471]
[1738965653249,5.2907,189.01,188.95,33.08628471]
[1738965653469,29.35348471,189.01,188.95,33.08628471]
[1738965653651,29.35348471,189.01,188.95,9.0235]
[1738965654177,29.35348471,189.01,188.95,8.0235]
[1738965654379,24.06278471,188.99,188.95,1.0]
[1738965654672,5.291,189.0,188.95,1.0]
[1738965654969,5.291,189.0,188.94,24.06278471]
[1738965655143,5.291,189.0,188.95,24.06278471]
[1738965655545,5.291,189.0,188.94,24.06278471]
[1738965655758,29.35378471,189.0,188.94,24.06278471]
[1738965656145,5.291,189.0,188.94,24.06278471]
[1738965656366,5.291,189.0,188.95,26.06278471]
[1738965656537,5.291,189.0,188.96,24.06278471]
[1738965656871,5.291,189.0,188.86,13.41184853]
[1738965656872,0.25098,188.96,188.87,1.0]
[1738965657075,13.66282853,188.94,188.86,1.0]
[1738965657239,0.25098,188.92,188.82,1.0]
[1738965657565,20.0,188.9,188.8,1.0]
[1738965657749,13.41184853,188.87,188.8,1.0]
[1738965657956,20.0,188.78,188.72,12.9524366]
[1738965658272,24.06278471,188.76,188.72,12.9524366]
[1738965658449,5.298,188.75,188.72,12.9524366]
[1738965658768,29.35798471,188.85,188.78,1.0]
[1738965658979,5.2952,188.85,188.76,1.0]
[1738965659148,29.35798471,188.85,188.74,1.0]
[1738965659343,42.59598471,188.85,188.78,24.06278471]
[1738965659570,24.06278471,188.84,188.77,24.06278471]
[1738965659862,24.31376471,188.83,188.77,24.06278471]
[1738965660075,24.06278471,188.81,188.74,24.06278471]
[1738965660370,5.2952,188.85,188.8,24.06278471]
[1738965660570,1.0,188.93,188.83,1.0]
[1738965660571,17.8329,188.93,188.83,1.0]
[1738965660752,4.6,188.93,188.85,1.0]
[1738965660945,24.6,188.93,188.86,1.0]
[1738965661144,13.2279,189.0,188.91,1.0]
[1738965661362,5.2904,189.02,188.93,1.0]
[1738965661568,5.2904,189.02,188.97,24.06278471]
[1738965661846,34.64358471,189.02,188.95,24.06278471]
[1738965662152,24.06278471,188.99,188.93,1.0]
[1738965662353,24.06278471,188.98,188.91,24.06278471]
[1738965662673,39.3609763,188.97,188.88,1.0]
[1738965662971,0.12549,188.96,188.86,1.0]
[1738965663175,39.3609763,188.93,188.86,40.3609763]
[1738965663377,39.3609763,188.94,188.87,40.3609763]
[1738965663565,39.3609763,188.95,188.88,39.3609763]
[1738965663760,39.3609763,188.94,188.87,39.3609763]
[1738965663962,39.3609763,188.95,188.89,39.3609763]
[1738965664174,59.3609763,188.97,188.9,39.3609763]
[1738965664383,18.5185,189.0,188.94,39.3609763]
[1738965664384,5.291,189.0,188.94,39.3609763]
[1738965664680,13.2223,189.08,188.96,1.0]
[1738965664865,21.185928,189.06,189.01,39.3609763]
[1738965665048,21.185928,189.06,188.98,1.0]
[1738965665374,5.2887,189.09,189.04,39.3609763]
[1738965665544,21.181402,189.1,189.05,39.3609763]
[1738965665744,5.2882,189.1,189.05,39.3609763]
[1738965665944,5.2878,189.12,189.07,39.3609763]
[1738965666263,39.3609763,189.1,189.03,39.3609763]
[1738965666465,18.5069,189.12,189.01,1.0]
[1738965666466,21.180388,189.11,189.01,39.3609763]
[1738965666779,21.180388,189.11,189.01,1.0]
[1738965666780,5.289,189.07,189.01,1.0]
[1738965666975,20.0,189.08,189.04,1.0]
[1738965667180,5.2886,189.09,189.05,39.3609763]
[1738965667348,5.2886,189.09,189.04,39.3609763]
[1738965667545,5.2886,189.09,189.04,40.3609763]
[1738965667787,5.2886,189.09,189.04,39.3609763]
[1738965668256,39.3609763,189.07,189.0,39.3609763]
[1738965668779,57.8735763,189.06,188.99,39.3609763]
[1738965668960,39.3609763,189.04,188.99,1.0]
[1738965669156,39.3609763,189.04,188.97,39.3609763]
[1738965669357,39.3609763,189.01,188.96,6.2877]
[1738965669555,39.3609763,189.05,188.98,40.3609763]
[1738965669860,20.0,189.02,188.96,40.3609763]
[1738965670063,4.6,189.14,189.01,1.0]
[1738965670249,5.2879,189.11,189.08,39.3609763]
[1738965670757,5.2873,189.13,189.07,40.3609763]
[1738965670955,5.2873,189.13,189.08,39.3609763]
[1738965671473,39.3609763,189.18,189.12,1.0]
[1738965671671,39.3609763,189.21,189.14,40.3609763]
[1738965671853,52.5732763,189.22,189.15,39.3609763]
[1738965672049,52.5732763,189.22,189.09,39.3609763]
[1738965672050,5.2842,189.24,189.16,1.0]
[1738965672382,5.2842,189.24,189.2,39.3609763]
[1738965672383,21.169496,189.23,189.2,39.3609763]
[1738965672555,5.2842,189.24,189.2,40.3609763]
[1738965672749,44.6451763,189.24,189.17,39.3609763]
[1738965672950,39.3609763,189.22,189.15,46.4928763]
[1738965673260,39.3609763,189.17,189.11,1.0]
[1738965673560,20.0,189.2,189.11,1.0]
[1738965673773,20.0,189.2,189.12,1.0]
[1738965674476,20.0,189.21,189.17,1.0]
[1738965674683,13.2083,189.28,189.17,1.0]
[1738965674853,39.3609763,189.24,189.18,40.3609763]
[1738965675158,39.3609763,189.23,189.18,1.0]
[1738965675360,4.7,189.25,189.19,1.0]
[1738965675361,64.0409763,189.25,189.19,1.0]
[1738965675566,39.3609763,189.27,189.2,40.3609763]
[1738965675955,39.3609763,189.27,189.21,1.0]
[1738965676151,44.6437763,189.29,189.22,40.3609763]
[1738965676375,44.6437763,189.29,189.12,27.88182853]
[1738965676376,18.49,189.29,189.16,1.0]
[1738965676578,20.0,189.26,189.16,1.0]
[1738965676782,18.494,189.25,189.18,1.0]
[1738965676954,18.494,189.25,189.17,1.0]
[1738965677294,5.284,189.25,189.2,1.0]
[1738965677582,5.2831,189.28,189.24,1.0]
[1738965677754,5.2831,189.28,189.25,1.0]
[1738965678286,10.002,189.32,189.28,1.0]
[1738965678485,39.3609763,189.31,189.24,40.3609763]
[1738965678666,10.002,189.32,189.2,1.0]
[1738965678667,39.3609763,189.25,189.2,1.0]
[1738965678862,20.0,189.25,189.17,1.0]
[1738965679073,0.25098,189.24,189.15,1.0]
[1738965679268,0.25098,189.22,189.14,1.0]
[1738965679456,0.25098,189.22,189.13,1.0]
[1738965679965,39.3609763,189.19,189.13,1.0]
[1738965680370,5.2859,189.18,189.13,1.0]
[1738965680575,5.2859,189.18,189.14,1.0]
[1738965681483,5.2859,189.18,189.13,1.0]
[1738965682056,5.2859,189.18,189.14,1.0]
[1738965682796,4.72,189.21,189.2,1.0]
[1738965682980,4.72,189.21,189.2,25.15218171]
[1738965683189,5.2834,189.27,189.24,1.0]
[1738965683550,5.283,189.29,189.26,1.0]
[1738965683760,5.283,189.29,189.28,1.0]
[1738965683984,9.9824,189.31,189.28,1.0]
[1738965684361,13.2022,189.37,189.3,24.15218171]
[1738965684681,5.2801,189.39,189.35,39.17363611]
[1738965684864,5.2801,189.39,189.35,40.17363611]
[1738965685179,5.2797,189.41,189.37,1.0]
[1738965685483,4.2797,189.41,189.37,1.0]
[1738965685664,0.03,189.43,189.41,1.0]
[1738965685866,44.48263611,189.43,189.38,1.0]
[1738965686071,5.309,189.43,189.4,1.0]
[1738965686582,0.03,189.43,189.39,1.0]
[1738965686788,0.03,189.43,189.35,1.0]
[1738965686789,39.17363611,189.41,189.35,1.0]
[1738965687090,39.17363611,189.41,189.36,1.0]
[1738965687289,0.03,189.43,189.42,1.0]
[1738965687492,0.03,189.43,189.42,0.5]
[1738965687876,0.03,189.43,189.42,39.67363611]
[1738965689384,0.03,189.48,189.47,0.5]
[1738965690324,0.03,189.48,189.47,39.67363611]
[1738965690868,0.03,189.48,189.47,0.5]
[1738965691097,39.20363611,189.48,189.45,0.5]
[1738965691393,39.20363611,189.48,189.46,0.5]
[1738965691603,0.03,189.48,189.47,0.5]
[1738965692866,0.03,189.48,189.47,39.67363611]
[1738965694298,0.03,189.51,189.5,39.67363611]
[1738965694477,0.03,189.51,189.5,45.97203611]
[1738965694677,0.03,189.51,189.5,66.49246464]
[1738965694994,0.03,189.51,189.5,47.55263611]
[1738965695310,0.03,189.51,189.5,8.379]
[1738965695597,0.03,189.51,189.5,0.5]
[1738965695789,39.20363611,189.51,189.48,0.5]
[1738965696598,0.03,189.51,189.49,0.5]
[1738965696899,0.03,189.51,189.5,0.5]
[1738965697077,0.03,189.51,189.5,39.67363611]
[1738965697270,0.03,189.51,189.5,0.5]
[1738965698176,0.03,189.51,189.5,39.67363611]
[1738965698375,0.03,189.51,189.5,0.5]
[1738965698877,0.03,189.51,189.49,0.5]
[1738965699077,0.03,189.51,189.5,0.5]
[1738965700577,0.03,189.51,189.5,39.67363611]
[1738965700975,0.03,189.51,189.5,58.36248464]
[1738965701174,0.03,189.51,189.5,53.08548464]
[1738965701480,0.03,189.51,189.5,58.36248464]
[1738965701676,0.03,189.51,189.5,53.08548464]
[1738965702177,0.03,189.51,189.5,39.67363611]
[1738965703511,0.03,189.51,189.5,0.5]
[1738965704908,0.03,189.51,189.5,19.18884853]
[1738965705088,0.03,189.56,189.55,0.5]
[1738965705401,0.03,189.56,189.55,39.67363611]
[1738965706679,0.03,189.56,189.55,24.55005143]
[1738965707185,0.03,189.56,189.55,0.5]
[1738965707383,0.03,189.56,189.54,0.5]
[1738965707581,24.05005143,189.55,189.51,0.5]
[1738965707796,24.05005143,189.52,189.5,0.5]
[1738965707999,24.05005143,189.51,189.5,0.5]
[1738965708611,20.03,189.56,189.51,0.5]
[1738965708909,0.03,189.56,189.55,0.5]
[1738965709781,0.03,189.56,189.55,24.55005143]
[1738965711310,0.03,189.56,189.55,0.5]
[1738965712306,0.03,189.56,189.55,24.55005143]
[1738965712985,0.03,189.56,189.55,0.5]
[1738965713405,24.08005143,189.56,189.55,0.5]
[1738965713591,0.03,189.56,189.55,0.5]
[1738965714289,42.04275143,189.57,189.55,0.5]
[1738965714911,4.805,189.57,189.56,0.5]
[1738965715909,4.805,189.57,189.55,0.5]
[1738965716110,20.0,189.56,189.54,0.5]
[1738965716287,24.05005143,189.55,189.54,0.5]
[1738965716994,44.05005143,189.55,189.54,0.5]
[1738965717194,4.805,189.57,189.56,0.5]
[1738965717581,4.805,189.57,189.54,0.5]
[1738965717782,24.05005143,189.56,189.52,0.5]
[1738965717989,20.0,189.54,189.51,0.563]
[1738965718289,24.05005143,189.52,189.51,0.063]
[1738965718494,24.05005143,189.52,189.51,0.563]
[1738965718705,44.05005143,189.54,189.53,0.5]
[1738965719109,44.05005143,189.54,189.51,0.063]
[1738965719310,29.32645143,189.52,189.51,0.063]
[1738965719497,29.57743143,189.52,189.51,0.0001]
[1738965719701,29.32645143,189.52,189.51,0.0001]
[1738965720395,42.98927996,189.52,189.51,0.0001]
[1738965720785,29.32645143,189.52,189.51,0.0001]
[1738965722825,5.2764,189.52,189.51,0.5001]
[1738965723390,5.276,189.54,189.53,0.5]
[1738965724018,0.25098,189.53,189.51,0.0001]
[1738965724233,44.05005143,189.52,189.51,0.0001]
[1738965724437,44.30103143,189.52,189.51,0.0001]
[1738965724729,49.57743143,189.52,189.51,0.0001]
[1738965725435,0.25098,189.49,189.43,0.0001]
[1738965725642,24.30103143,189.44,189.43,0.0001]
[1738965725826,42.59287996,189.44,189.43,0.0001]
[1738965726507,47.87157996,189.44,189.43,0.0001]
[1738965726708,47.87157996,189.44,189.32,0.063]
[1738965726709,20.25098,189.4,189.32,0.563]
[1738965727014,24.05005143,189.33,189.32,0.063]
[1738965727208,24.05005143,189.34,189.33,0.5]
[1738965727434,24.05005143,189.34,189.32,0.563]
[1738965727638,24.05005143,189.33,189.32,0.563]
[1738965727841,24.05005143,189.34,189.33,0.5]
[1738965728022,24.05005143,189.34,189.32,0.063]
[1738965728241,24.05005143,189.33,189.32,0.063]
[1738965728734,42.99457996,189.33,189.32,0.0001]
[1738965729042,29.33175143,189.33,189.32,0.0001]
[1738965729333,5.2817,189.33,189.32,0.0001]
[1738965729529,5.2817,189.33,189.32,0.5001]
[1738965730367,29.33175143,189.33,189.32,0.5001]